[Event "*** Titled Tuesday 3|2 Blitz"]
[Site "Chess.com"]
[Date "2016.09.06"]
[Round "7"]
[White "FairChess_on_YouTube"]
[Black "ZapataCharlesS"]
[Result "1-0"]
[WhiteElo "2699"]
[BlackElo "2586"]
[TimeControl "180+2"]
[EndTime "18:26:46 PDT"]
[Termination "FairChess_on_YouTube won on time"]

1. e4 {[%clk 0:03:01.9]} 1... e5 {[%clk 0:02:57.8]} 2. Nf3 {[%clk 0:03:02.6]}
2... Nc6 {[%clk 0:02:58.2]} 3. Bb5 {[%clk 0:03:03.4]} 3... g6 {[%clk 0:02:58.8]}
4. c3 {[%clk 0:03:01.5]} 4... d6 {[%clk 0:02:59.1]} 5. d4 {[%clk 0:03:01.1]}
5... Bd7 {[%clk 0:03:00.2]} 6. Bg5 {[%clk 0:02:59.7]} 6... Be7 {[%clk
0:02:56.9]} 7. Be3 {[%clk 0:03:00.4]} 7... Nf6 {[%clk 0:02:55.6]} 8. d5 {[%clk
0:03:00.1]} 8... Nb8 {[%clk 0:02:56]} 9. Bd3 {[%clk 0:03:00.9]} 9... O-O {[%clk
0:02:54.4]} 10. h3 {[%clk 0:03:00.6]} 10... c5 {[%clk 0:02:55]} 11. c4 {[%clk
0:02:59.1]} 11... Re8 {[%clk 0:02:52.6]} 12. Nc3 {[%clk 0:02:59.5]} 12... Bf8
{[%clk 0:02:54.3]} 13. g4 {[%clk 0:02:59.5]} 13... Na6 {[%clk 0:02:49.5]} 14.
Qd2 {[%clk 0:02:55.9]} 14... Nc7 {[%clk 0:02:45.8]} 15. b3 {[%clk 0:02:55.4]}
15... a6 {[%clk 0:02:43.1]} 16. a4 {[%clk 0:02:55.7]} 16... a5 {[%clk
0:02:42.3]} 17. O-O-O {[%clk 0:02:53.8]} 17... Na6 {[%clk 0:02:42.5]} 18. Rdg1
{[%clk 0:02:53.1]} 18... Nb4 {[%clk 0:02:43.1]} 19. Bb1 {[%clk 0:02:54]} 19...
Bg7 {[%clk 0:02:40.5]} 20. Qe2 {[%clk 0:02:38.9]} 20... b6 {[%clk 0:02:37.9]}
21. Nd2 {[%clk 0:02:37.9]} 21... Qc7 {[%clk 0:02:32.7]} 22. f3 {[%clk
0:02:33.1]} 22... h6 {[%clk 0:02:23.7]} 23. Nf1 {[%clk 0:02:31.7]} 23... Nh7
{[%clk 0:02:04.7]} 24. Ng3 {[%clk 0:02:23.3]} 24... Qd8 {[%clk 0:02:05.3]} 25.
h4 {[%clk 0:02:23.4]} 25... Qe7 {[%clk 0:02:02.4]} 26. Qd2 {[%clk 0:02:18.5]}
26... Qf8 {[%clk 0:02:00.8]} 27. Nb5 {[%clk 0:02:15.3]} 27... Bxb5 {[%clk
0:02:00.1]} 28. cxb5 {[%clk 0:02:17.2]} 28... c4 {[%clk 0:01:56.9]} 29. bxc4
{[%clk 0:02:11.3]} 29... Rec8 {[%clk 0:01:58.8]} 30. Kb2 {[%clk 0:02:11.8]}
30... Rxc4 {[%clk 0:01:56.7]} 31. Kb3 {[%clk 0:02:07.9]} 31... Rac8 {[%clk
0:01:50.3]} 32. Rc1 {[%clk 0:02:06.8]} 32... R4c5 {[%clk 0:01:41.7]} 33. h5
{[%clk 0:02:02.7]} 33... Ng5 {[%clk 0:01:30.8]} 34. Rxc5 {[%clk 0:01:35]} 34...
dxc5 {[%clk 0:01:22.7]} 35. Kc4 {[%clk 0:01:22.5]} 35... Nxf3 {[%clk 0:01:19.5]}
36. Qe2 {[%clk 0:01:11.5]} 36... Nd4 {[%clk 0:01:19.6]} 37. Qg2 {[%clk
0:01:04.4]} 37... g5 {[%clk 0:01:07.7]} 38. Nf5 {[%clk 0:00:59.5]} 38... Nxf5
{[%clk 0:00:52.9]} 39. exf5 {[%clk 0:01:01.4]} 39... Qd6 {[%clk 0:00:54.7]} 40.
f6 {[%clk 0:00:58.5]} 40... Bxf6 {[%clk 0:00:52.3]} 41. Rf1 {[%clk 0:00:54.7]}
41... e4 {[%clk 0:00:47]} 42. Qxe4 {[%clk 0:00:50.3]} 42... Bg7 {[%clk
0:00:47.3]} 43. Bd2 {[%clk 0:00:22.8]} 43... Kf8 {[%clk 0:00:39.4]} 44. Qe6
{[%clk 0:00:16.5]} 44... Qxe6 {[%clk 0:00:31.6]} 45. dxe6 {[%clk 0:00:18.4]}
45... f6 {[%clk 0:00:33.5]} 46. Bf5 {[%clk 0:00:10.1]} 46... Ke7 {[%clk
0:00:33.6]} 47. Bc3 {[%clk 0:00:09.5]} 47... Rd8 {[%clk 0:00:33.5]} 48. Re1
{[%clk 0:00:10.1]} 48... Nd5 {[%clk 0:00:30.4]} 49. Bd2 {[%clk 0:00:09]} 49...
Bf8 {[%clk 0:00:25.4]} 50. Bc1 {[%clk 0:00:07]} 50... Nf4 {[%clk 0:00:25.8]} 51.
Re4 {[%clk 0:00:05.7]} 51... Nd3 {[%clk 0:00:16.5]} 52. Be3 {[%clk 0:00:06.5]}
52... Nb2+ {[%clk 0:00:10.3]} 53. Kb3 {[%clk 0:00:07]} 53... Nd3 {[%clk
0:00:11.5]} 54. Kc3 {[%clk 0:00:06.1]} 54... Ne5 {[%clk 0:00:11.8]} 55. Kc2
{[%clk 0:00:06.1]} 55... Nf3 {[%clk 0:00:09.9]} 56. Kc3 {[%clk 0:00:04.8]} 56...
Nh4 {[%clk 0:00:10.7]} 57. Bc1 {[%clk 0:00:05.2]} 57... Nxf5 {[%clk 0:00:09.4]}
58. gxf5 {[%clk 0:00:07.1]} 58... Rd5 {[%clk 0:00:10.1]} 59. Be3 {[%clk
0:00:08.1]} 59... Rxf5 {[%clk 0:00:11.1]} 60. Kc4 {[%clk 0:00:09.8]} 60... Bg7
{[%clk 0:00:11.3]} 61. Bg1 {[%clk 0:00:09.2]} 61... Rf4 {[%clk 0:00:11.3]} 62.
Bxc5+ {[%clk 0:00:08.5]} 62... bxc5 {[%clk 0:00:12]} 63. Rxf4 {[%clk 0:00:09.8]}
63... gxf4 {[%clk 0:00:13.3]} 64. b6 {[%clk 0:00:11.1]} 64... f5 {[%clk
0:00:14.6]} 65. Kd5 {[%clk 0:00:11.3]} 65... f3 {[%clk 0:00:08.6]} 66. b7 {[%clk
0:00:12.7]} 66... f2 {[%clk 0:00:10.2]} 67. b8=Q {[%clk 0:00:13.8]} 67... f1=Q
{[%clk 0:00:12.1]} 68. Qc7+ {[%clk 0:00:10.6]} 68... Kf6 {[%clk 0:00:13.6]} 69.
Qf7+ {[%clk 0:00:12]} 69... Kg5 {[%clk 0:00:15.5]} 70. Qxg7+ {[%clk 0:00:12.9]}
70... Kh4 {[%clk 0:00:14.2]} 71. e7 {[%clk 0:00:13.3]} 71... Qd3+ {[%clk
0:00:14.1]} 72. Ke6 {[%clk 0:00:13.9]} 72... Qe4+ {[%clk 0:00:15.3]} 73. Qe5
{[%clk 0:00:14.7]} 73... Qc4+ {[%clk 0:00:14]} 74. Kf6 {[%clk 0:00:14.2]} 74...
Qa6+ {[%clk 0:00:08]} 75. Qe6 {[%clk 0:00:14.2]} 1-0

[Event "*** Titled Tuesday 3|2 Blitz"]
[Site "Chess.com"]
[Date "2016.09.06"]
[Round "8"]
[White "ShimanovAlex"]
[Black "putinwarrior"]
[Result "1-0"]
[WhiteElo "2560"]
[BlackElo "2368"]
[TimeControl "180+2"]
[EndTime "18:29:06 PDT"]
[Termination "ShimanovAlex won by resignation"]

1. d4 {[%clk 0:03:00.8]} 1... Nf6 {[%clk 0:02:57.8]} 2. Nf3 {[%clk 0:03:01.1]}
2... c5 {[%clk 0:02:56.6]} 3. c3 {[%clk 0:03:00.3]} 3... e6 {[%clk 0:02:55.8]}
4. Bf4 {[%clk 0:03:00.7]} 4... b6 {[%clk 0:02:57.1]} 5. Nbd2 {[%clk 0:03:00.7]}
5... Bb7 {[%clk 0:02:58.6]} 6. e3 {[%clk 0:03:00.8]} 6... Be7 {[%clk 0:03:00.1]}
7. h3 {[%clk 0:03:00.3]} 7... O-O {[%clk 0:03:01.6]} 8. Bd3 {[%clk 0:03:00.7]}
8... d6 {[%clk 0:03:01.7]} 9. O-O {[%clk 0:02:59.2]} 9... Nbd7 {[%clk
0:03:03.2]} 10. Bh2 {[%clk 0:03:00.1]} 10... a6 {[%clk 0:03:03]} 11. a4 {[%clk
0:03:00.7]} 11... Qc7 {[%clk 0:03:03.7]} 12. Qe2 {[%clk 0:03:01.3]} 12... e5
{[%clk 0:03:00.1]} 13. dxe5 {[%clk 0:02:59.6]} 13... Nxe5 {[%clk 0:03:00.8]} 14.
Nxe5 {[%clk 0:02:59.6]} 14... dxe5 {[%clk 0:03:02]} 15. e4 {[%clk 0:03:00.4]}
15... Rfe8 {[%clk 0:02:55.2]} 16. Bc4 {[%clk 0:02:57.5]} 16... Nd7 {[%clk
0:02:52.4]} 17. Rfd1 {[%clk 0:02:52.6]} 17... Nf8 {[%clk 0:02:52.7]} 18. Nf1
{[%clk 0:02:50.5]} 18... Ng6 {[%clk 0:02:50.8]} 19. Qf3 {[%clk 0:02:47.9]} 19...
Rad8 {[%clk 0:02:49.5]} 20. Bxf7+ {[%clk 0:02:47]} 20... Kh8 {[%clk 0:02:49.6]}
21. Bxe8 {[%clk 0:02:47.1]} 21... Rxe8 {[%clk 0:02:50.9]} 22. Ne3 {[%clk
0:02:48.1]} 1-0

[Event "*** Titled Tuesday 3|2 Blitz"]
[Site "Chess.com"]
[Date "2016.09.06"]
[Round "8"]
[White "Quiet_Desperation"]
[Black "beastfromweast"]
[Result "0-1"]
[WhiteElo "2202"]
[BlackElo "2289"]
[TimeControl "180+2"]
[EndTime "18:30:22 PDT"]
[Termination "beastfromweast won by checkmate"]

1. e4 {[%clk 0:03:01.9]} 1... c5 {[%clk 0:02:59.6]} 2. Nf3 {[%clk 0:02:58.1]}
2... d6 {[%clk 0:03:00.6]} 3. d4 {[%clk 0:02:59.3]} 3... cxd4 {[%clk 0:03:02.3]}
4. Nxd4 {[%clk 0:03:00]} 4... Nf6 {[%clk 0:03:03.8]} 5. Nc3 {[%clk 0:03:01.2]}
5... a6 {[%clk 0:03:05.3]} 6. Be3 {[%clk 0:03:01.4]} 6... e6 {[%clk 0:03:06.1]}
7. Bd3 {[%clk 0:03:01.3]} 7... Be7 {[%clk 0:03:06.1]} 8. O-O {[%clk 0:03:01.8]}
8... b5 {[%clk 0:03:05.2]} 9. a3 {[%clk 0:03:02.6]} 9... Bb7 {[%clk 0:03:05.7]}
10. f4 {[%clk 0:03:03.7]} 10... Nbd7 {[%clk 0:03:06.4]} 11. Kh1 {[%clk
0:03:04.6]} 11... Nc5 {[%clk 0:03:06.6]} 12. Qf3 {[%clk 0:03:01]} 12... Qc7
{[%clk 0:02:53.8]} 13. Rae1 {[%clk 0:03:01.5]} 13... Rd8 {[%clk 0:02:53.4]} 14.
Bd2 {[%clk 0:03:00.8]} 14... O-O {[%clk 0:02:53.6]} 15. Qh3 {[%clk 0:02:58.4]}
15... Nxd3 {[%clk 0:02:49.2]} 16. cxd3 {[%clk 0:02:58.4]} 16... Qb8 {[%clk
0:02:47.6]} 17. e5 {[%clk 0:02:45.6]} 17... dxe5 {[%clk 0:02:47.5]} 18. Nxe6
{[%clk 0:02:46.9]} 18... Bxg2+ {[%clk 0:02:32.3]} 19. Kxg2 {[%clk 0:02:44.8]}
19... Qb7+ {[%clk 0:02:32.4]} 20. Ne4 {[%clk 0:02:34.4]} 20... fxe6 {[%clk
0:02:27.1]} 21. Qxe6+ {[%clk 0:02:34.8]} 21... Kh8 {[%clk 0:02:27.3]} 22. fxe5
{[%clk 0:02:36]} 22... Rxd3 {[%clk 0:02:18.5]} 23. exf6 {[%clk 0:02:28.4]} 23...
Rxd2+ {[%clk 0:02:18.2]} 24. Kg1 {[%clk 0:02:14.5]} 24... Bc5+ {[%clk 0:02:18]}
25. Nxc5 {[%clk 0:02:14.8]} 25... Qg2# {[%clk 0:02:17.8]} 0-1

[Event "*** Titled Tuesday 3|2 Blitz"]
[Site "Chess.com"]
[Date "2016.09.06"]
[Round "8"]
[White "Rsnr"]
[Black "tigra"]
[Result "0-1"]
[WhiteElo "2507"]
[BlackElo "2458"]
[TimeControl "180+2"]
[EndTime "18:33:54 PDT"]
[Termination "tigra won by resignation"]

1. d4 {[%clk 0:03:01.9]} 1... Nf6 {[%clk 0:02:57.3]} 2. c4 {[%clk 0:03:03.5]}
2... g6 {[%clk 0:02:57.6]} 3. Nc3 {[%clk 0:03:03.4]} 3... Bg7 {[%clk 0:02:59.5]}
4. g3 {[%clk 0:03:04]} 4... O-O {[%clk 0:03:00.8]} 5. Bg2 {[%clk 0:03:05.6]}
5... c5 {[%clk 0:03:02.2]} 6. Nf3 {[%clk 0:03:06.8]} 6... cxd4 {[%clk 0:03:03]}
7. Nxd4 {[%clk 0:03:08.7]} 7... Nc6 {[%clk 0:03:04.9]} 8. O-O {[%clk 0:03:10.4]}
8... Nxd4 {[%clk 0:03:05.8]} 9. Qxd4 {[%clk 0:03:12.3]} 9... d5 {[%clk
0:03:07.7]} 10. cxd5 {[%clk 0:03:09.2]} 10... Bf5 {[%clk 0:03:06]} 11. Qd1
{[%clk 0:02:55.8]} 11... Rc8 {[%clk 0:03:05.5]} 12. e4 {[%clk 0:02:30.4]} 12...
Rxc3 {[%clk 0:03:03.7]} 13. bxc3 {[%clk 0:02:25.8]} 13... Nxe4 {[%clk
0:03:04.2]} 14. Bb2 {[%clk 0:02:18.2]} 14... Nxc3 {[%clk 0:03:04.1]} 15. Bxc3
{[%clk 0:02:14.8]} 15... Bxc3 {[%clk 0:03:04]} 16. Rc1 {[%clk 0:02:16.7]} 16...
Be5 {[%clk 0:03:03.9]} 17. Qd2 {[%clk 0:02:15.7]} 17... Qb6 {[%clk 0:02:59.3]}
18. Rc4 {[%clk 0:02:12.9]} 18... Bd6 {[%clk 0:02:56.9]} 19. Rfc1 {[%clk
0:02:11.4]} 19... Bd7 {[%clk 0:02:57.2]} 20. a4 {[%clk 0:02:10.1]} 20... a5
{[%clk 0:02:56.9]} 21. h4 {[%clk 0:02:08.9]} 21... Bb4 {[%clk 0:02:57.2]} 22.
Qc2 {[%clk 0:01:28.4]} 22... Bd6 {[%clk 0:02:52.2]} 23. Rb1 {[%clk 0:01:27.9]}
23... Qa7 {[%clk 0:02:51.5]} 24. Qc3 {[%clk 0:01:21.7]} 24... Rb8 {[%clk
0:02:50.8]} 25. Bf1 {[%clk 0:01:20.9]} 25... Bf5 {[%clk 0:02:42.2]} 26. Rb5
{[%clk 0:01:19.8]} 26... b6 {[%clk 0:02:40.5]} 27. Rb2 {[%clk 0:01:12.1]} 27...
Bd7 {[%clk 0:02:35.8]} 28. Qc2 {[%clk 0:01:10.8]} 28... Rd8 {[%clk 0:02:21.3]}
29. h5 {[%clk 0:01:08.2]} 29... Bxg3 {[%clk 0:02:15.5]} 30. hxg6 {[%clk
0:00:48.9]} 30... hxg6 {[%clk 0:02:15.7]} 31. Bd3 {[%clk 0:00:48.3]} 31... Be5
{[%clk 0:02:14.7]} 32. Rb1 {[%clk 0:00:48.4]} 32... Kg7 {[%clk 0:02:09.9]} 33.
Rh4 {[%clk 0:00:49.6]} 33... Qb8 {[%clk 0:02:04.9]} 34. Qd2 {[%clk 0:00:49.1]}
34... Rh8 {[%clk 0:02:03.9]} 35. Rxh8 {[%clk 0:00:49.8]} 35... Qxh8 {[%clk
0:02:05.8]} 36. Qe3 {[%clk 0:00:32.1]} 36... Qh2+ {[%clk 0:02:03.1]} 37. Kf1
{[%clk 0:00:33.5]} 37... Bg4 {[%clk 0:02:01.6]} 38. Ke1 {[%clk 0:00:30]} 38...
Bc3+ {[%clk 0:01:59.5]} 0-1

[Event "*** Titled Tuesday 3|2 Blitz"]
[Site "Chess.com"]
[Date "2016.09.06"]
[Round "8"]
[White "Newlight1"]
[Black "MbMaster"]
[Result "1-0"]
[WhiteElo "2507"]
[BlackElo "2330"]
[TimeControl "180+2"]
[EndTime "18:34:09 PDT"]
[Termination "Newlight1 won by resignation"]

1. e4 {[%clk 0:03:00.7]} 1... e5 {[%clk 0:03:00.3]} 2. Nf3 {[%clk 0:03:00.9]}
2... Nc6 {[%clk 0:03:01.6]} 3. d4 {[%clk 0:03:02.3]} 3... exd4 {[%clk
0:02:59.9]} 4. Bc4 {[%clk 0:03:03.1]} 4... Nf6 {[%clk 0:02:59.7]} 5. O-O {[%clk
0:03:01.9]} 5... Nxe4 {[%clk 0:02:59.7]} 6. Re1 {[%clk 0:03:03.6]} 6... d5
{[%clk 0:03:00]} 7. Bxd5 {[%clk 0:03:05.3]} 7... Qxd5 {[%clk 0:03:01.2]} 8. Nc3
{[%clk 0:03:06.8]} 8... Qd7 {[%clk 0:03:02.5]} 9. Nxe4 {[%clk 0:02:34.6]} 9...
Be7 {[%clk 0:03:02.5]} 10. Bg5 {[%clk 0:02:34.5]} 10... O-O {[%clk 0:03:00]} 11.
Bxe7 {[%clk 0:02:34]} 11... Qxe7 {[%clk 0:03:00.6]} 12. Nxd4 {[%clk 0:02:34.8]}
12... Bd7 {[%clk 0:03:00.1]} 13. Qh5 {[%clk 0:02:26.8]} 13... h6 {[%clk
0:02:03.6]} 14. Nc5 {[%clk 0:02:15.4]} 14... Qd6 {[%clk 0:01:57.9]} 15. Nb5
{[%clk 0:02:14.8]} 15... Bg4 {[%clk 0:01:24.4]} 16. Nxd6 {[%clk 0:02:12]} 16...
Bxh5 {[%clk 0:01:25]} 17. Ndxb7 {[%clk 0:02:13.9]} 17... Rab8 {[%clk 0:01:22.6]}
18. h3 {[%clk 0:01:54.1]} 18... Nd4 {[%clk 0:01:13.1]} 19. Re7 {[%clk
0:01:50.2]} 19... Nxc2 {[%clk 0:00:50.6]} 20. Rc1 {[%clk 0:01:48.2]} 20... Nb4
{[%clk 0:00:51.8]} 21. Rxc7 {[%clk 0:01:29]} 21... Nxa2 {[%clk 0:00:30.9]} 22.
Rc4 {[%clk 0:01:29.3]} 22... Rfc8 {[%clk 0:00:26.7]} 23. Rxc8+ {[%clk
0:01:29.6]} 23... Rxc8 {[%clk 0:00:28.6]} 24. Ra4 {[%clk 0:01:29.4]} 24... Nc1
{[%clk 0:00:22.6]} 25. Rxa7 {[%clk 0:01:30.9]} 25... Bg6 {[%clk 0:00:21.1]} 26.
b4 {[%clk 0:01:28.6]} 26... Nd3 {[%clk 0:00:21.2]} 27. Nd6 {[%clk 0:01:26.9]}
27... Rc6 {[%clk 0:00:13.7]} 28. Nxf7 {[%clk 0:01:27.7]} 28... Nxc5 {[%clk
0:00:12]} 29. Ne5 {[%clk 0:01:21.5]} 29... Ra6 {[%clk 0:00:12]} 30. Rxa6 {[%clk
0:01:20.1]} 30... Nxa6 {[%clk 0:00:13.9]} 31. b5 {[%clk 0:01:21.6]} 1-0

[Event "*** Titled Tuesday 3|2 Blitz"]
[Site "Chess.com"]
[Date "2016.09.06"]
[Round "8"]
[White "DeviatkinAndrey"]
[Black "papapizza_old"]
[Result "1-0"]
[WhiteElo "2562"]
[BlackElo "2241"]
[TimeControl "180+2"]
[EndTime "18:34:49 PDT"]
[Termination "DeviatkinAndrey won by resignation"]

1. b4 {[%clk 0:03:01.2]} 1... e5 {[%clk 0:02:54]} 2. Bb2 {[%clk 0:03:02.4]} 2...
Bxb4 {[%clk 0:02:51.5]} 3. Bxe5 {[%clk 0:03:02.9]} 3... Nf6 {[%clk 0:02:48.1]}
4. c4 {[%clk 0:02:58.8]} 4... O-O {[%clk 0:02:44.4]} 5. Nf3 {[%clk 0:02:59]}
5... Re8 {[%clk 0:02:41.5]} 6. e3 {[%clk 0:02:52.3]} 6... Bf8 {[%clk 0:02:32.4]}
7. Be2 {[%clk 0:02:48.2]} 7... g6 {[%clk 0:02:28.4]} 8. Nc3 {[%clk 0:02:44.1]}
8... d6 {[%clk 0:02:23.5]} 9. Bg3 {[%clk 0:02:42.3]} 9... Bg7 {[%clk 0:02:22.9]}
10. d4 {[%clk 0:02:42.9]} 10... b6 {[%clk 0:02:09.4]} 11. O-O {[%clk 0:02:42.7]}
11... Bb7 {[%clk 0:02:10.6]} 12. h3 {[%clk 0:02:43.2]} 12... Nbd7 {[%clk
0:02:09]} 13. a4 {[%clk 0:02:40.6]} 13... Ne4 {[%clk 0:02:03.9]} 14. Nxe4 {[%clk
0:02:40.9]} 14... Bxe4 {[%clk 0:02:04.8]} 15. a5 {[%clk 0:02:42]} 15... Qe7
{[%clk 0:02:03.5]} 16. Nd2 {[%clk 0:02:40.5]} 16... c5 {[%clk 0:01:54.8]} 17.
Nxe4 {[%clk 0:02:39.1]} 17... Qxe4 {[%clk 0:01:54.3]} 18. Bf3 {[%clk 0:02:40.4]}
18... Qe6 {[%clk 0:01:50.4]} 19. Bxa8 {[%clk 0:02:40.7]} 19... Rxa8 {[%clk
0:01:51.1]} 20. axb6 {[%clk 0:02:42]} 20... Nxb6 {[%clk 0:01:52]} 21. Rc1 {[%clk
0:02:07.6]} 21... Nxc4 {[%clk 0:01:16.6]} 22. d5 {[%clk 0:01:40.4]} 22... Qe4
{[%clk 0:01:16.7]} 23. f3 {[%clk 0:01:26.2]} 23... Qxe3+ {[%clk 0:01:07]} 24.
Bf2 {[%clk 0:01:27.5]} 24... Qf4 {[%clk 0:01:07.9]} 25. g3 {[%clk 0:01:24.9]}
25... Qf5 {[%clk 0:00:55.7]} 26. Rxc4 {[%clk 0:01:25.4]} 26... Qxh3 {[%clk
0:00:56.5]} 27. Rh4 {[%clk 0:01:20.4]} 27... Qf5 {[%clk 0:00:56.7]} 28. Re4
{[%clk 0:01:09.8]} 28... h5 {[%clk 0:00:53.6]} 29. Kg2 {[%clk 0:01:10.4]} 29...
Be5 {[%clk 0:00:52.3]} 30. Rfe1 {[%clk 0:01:10.5]} 30... Rb8 {[%clk 0:00:49.2]}
31. Qe2 {[%clk 0:01:03.3]} 31... Rb3 {[%clk 0:00:45.2]} 32. Rxe5 {[%clk
0:00:53.4]} 32... dxe5 {[%clk 0:00:45.2]} 33. Rd1 {[%clk 0:00:51.5]} 33... Rb4
{[%clk 0:00:35.6]} 34. d6 {[%clk 0:00:52.1]} 34... e4 {[%clk 0:00:36.7]} 35. d7
{[%clk 0:00:52]} 35... exf3+ {[%clk 0:00:38.1]} 36. Qxf3 {[%clk 0:00:52.8]} 1-0

[Event "*** Titled Tuesday 3|2 Blitz"]
[Site "Chess.com"]
[Date "2016.09.06"]
[Round "8"]
[White "hypert"]
[Black "rithwik2002"]
[Result "0-1"]
[WhiteElo "2320"]
[BlackElo "1957"]
[TimeControl "180+2"]
[EndTime "18:35:56 PDT"]
[Termination "rithwik2002 won by resignation"]

1. e4 {[%clk 0:03:01.9]} 1... c5 {[%clk 0:02:53]} 2. Nf3 {[%clk 0:03:02.7]} 2...
d6 {[%clk 0:02:35.2]} 3. d4 {[%clk 0:03:01.4]} 3... cxd4 {[%clk 0:02:37.1]} 4.
Nxd4 {[%clk 0:03:03.3]} 4... Nf6 {[%clk 0:02:30.6]} 5. Nc3 {[%clk 0:03:03.7]}
5... a6 {[%clk 0:02:30.5]} 6. f3 {[%clk 0:03:04.7]} 6... e5 {[%clk 0:02:29.8]}
7. Nb3 {[%clk 0:03:05.6]} 7... Be6 {[%clk 0:02:27.4]} 8. Be3 {[%clk 0:03:07.1]}
8... Be7 {[%clk 0:02:27.2]} 9. Qd2 {[%clk 0:03:07.6]} 9... O-O {[%clk
0:02:28.8]} 10. g4 {[%clk 0:03:08.7]} 10... d5 {[%clk 0:02:30]} 11. exd5 {[%clk
0:03:04.5]} 11... Nxd5 {[%clk 0:02:25.8]} 12. Nxd5 {[%clk 0:03:05]} 12... Bh4+
{[%clk 0:02:17.7]} 13. Bf2 {[%clk 0:03:04.1]} 13... Bxf2+ {[%clk 0:02:10.6]} 14.
Qxf2 {[%clk 0:03:01.5]} 14... Qxd5 {[%clk 0:01:41.5]} 15. Bd3 {[%clk 0:02:58.9]}
15... Nd7 {[%clk 0:01:28.9]} 16. O-O-O {[%clk 0:02:49.9]} 16... Qc6 {[%clk
0:01:25.1]} 17. g5 {[%clk 0:02:22.8]} 17... a5 {[%clk 0:01:18]} 18. Qh4 {[%clk
0:02:08.2]} 18... g6 {[%clk 0:01:05.5]} 19. Nd2 {[%clk 0:01:38.5]} 19... Bxa2
{[%clk 0:00:44.7]} 20. Ne4 {[%clk 0:01:37.7]} 20... Rac8 {[%clk 0:00:45.9]} 21.
Kd2 {[%clk 0:01:35.7]} 21... Rfd8 {[%clk 0:00:40.1]} 22. b3 {[%clk 0:01:00.9]}
22... Nc5 {[%clk 0:00:22.1]} 23. Nxc5 {[%clk 0:00:45.9]} 23... Qxc5 {[%clk
0:00:24]} 24. Ke2 {[%clk 0:00:30.8]} 24... Rd4 {[%clk 0:00:23.6]} 25. Qe1 {[%clk
0:00:24.9]} 25... a4 {[%clk 0:00:20.3]} 26. bxa4 {[%clk 0:00:18.3]} 26... Bc4
{[%clk 0:00:18.6]} 27. Rd2 {[%clk 0:00:19.1]} 27... e4 {[%clk 0:00:15]} 28. Qf2
{[%clk 0:00:14.9]} 28... exd3+ {[%clk 0:00:08]} 29. cxd3 {[%clk 0:00:16.8]}
29... Bxd3+ {[%clk 0:00:07.4]} 30. Rxd3 {[%clk 0:00:15.5]} 30... Qc2+ {[%clk
0:00:07]} 31. Kf1 {[%clk 0:00:16.6]} 31... Qxf2+ {[%clk 0:00:07.2]} 32. Kxf2
{[%clk 0:00:17.6]} 32... Rxd3 {[%clk 0:00:09.1]} 33. Rb1 {[%clk 0:00:18.2]}
33... Rdc3 {[%clk 0:00:10.4]} 34. Rxb7 {[%clk 0:00:17.7]} 34... Rc2+ {[%clk
0:00:12.3]} 35. Kg3 {[%clk 0:00:17.7]} 35... R8c4 {[%clk 0:00:13.1]} 36. a5
{[%clk 0:00:18.5]} 36... Ra2 {[%clk 0:00:14.1]} 37. Rb8+ {[%clk 0:00:18.4]}
37... Kg7 {[%clk 0:00:13.4]} 38. Rb5 {[%clk 0:00:20.3]} 38... Rca4 {[%clk
0:00:14]} 39. h4 {[%clk 0:00:21.8]} 39... Rxa5 {[%clk 0:00:14.9]} 40. Rb6 {[%clk
0:00:23.3]} 40... h6 {[%clk 0:00:14.8]} 41. gxh6+ {[%clk 0:00:22.7]} 41... Kxh6
{[%clk 0:00:15.6]} 42. Rf6 {[%clk 0:00:24.6]} 42... Kg7 {[%clk 0:00:16.3]} 43.
Rf4 {[%clk 0:00:25.6]} 43... Ra1 {[%clk 0:00:16.6]} 44. Rb4 {[%clk 0:00:24.7]}
44... R1a4 {[%clk 0:00:17.8]} 45. Rb3 {[%clk 0:00:25.7]} 45... Rc5 {[%clk
0:00:18.1]} 46. Rd3 {[%clk 0:00:26.7]} 46... Rcc4 {[%clk 0:00:19.3]} 0-1